[Event "Early-Titled-Tuesday-Blitz-October-03-2023"]
[Site "Chess.com"]
[Date "2023.10.03"]
[Round "6"]
[White "RETURNOFTHELAGGER"]
[Black "colegiodemadrid"]
[Result "1-0"]
[WhiteElo "2662"]
[BlackElo "2407"]
[TimeControl "180+1"]
[EndTime "9:04:59 PDT"]
[Termination "RETURNOFTHELAGGER won by checkmate"]

1. e4 {[%clk 0:02:51.1]} 1... e5 {[%clk 0:02:59.3]} 2. Nc3 {[%clk 0:02:49.6]}
2... Nf6 {[%clk 0:02:58.3]} 3. f4 {[%clk 0:02:48.9]} 3... d5 {[%clk 0:02:58.5]}
4. fxe5 {[%clk 0:02:47.4]} 4... Nxe4 {[%clk 0:02:57.6]} 5. Qf3 {[%clk
0:02:46.7]} 5... Nxc3 {[%clk 0:02:55.1]} 6. dxc3 {[%clk 0:02:45]} 6... Be6
{[%clk 0:02:46.8]} 7. Bf4 {[%clk 0:02:45.1]} 7... g5 {[%clk 0:02:44.5]} 8. Bg3
{[%clk 0:02:42.5]} 8... g4 {[%clk 0:02:44.6]} 9. Qf2 {[%clk 0:02:29.9]} 9... Be7
{[%clk 0:02:39.4]} 10. O-O-O {[%clk 0:02:30.3]} 10... h5 {[%clk 0:02:38.8]} 11.
Kb1 {[%clk 0:02:26.3]} 11... h4 {[%clk 0:02:37.8]} 12. Bf4 {[%clk 0:02:26.5]}
12... Nd7 {[%clk 0:02:35.6]} 13. Ne2 {[%clk 0:02:23.8]} 13... Nc5 {[%clk
0:02:33.1]} 14. Nd4 {[%clk 0:02:20.3]} 14... Ne4 {[%clk 0:02:30.7]} 15. Qe1
{[%clk 0:02:16.7]} 15... c5 {[%clk 0:02:18.9]} 16. Nxe6 {[%clk 0:02:13.3]} 16...
fxe6 {[%clk 0:02:19.8]} 17. Bb5+ {[%clk 0:02:13.8]} 17... Kf8 {[%clk 0:02:13.7]}
18. Rf1 {[%clk 0:02:14.5]} 18... Kg8 {[%clk 0:02:13.7]} 19. Qe2 {[%clk
0:02:11.3]} 19... Qb6 {[%clk 0:02:01.6]} 20. Qxg4+ {[%clk 0:02:08.7]} 20... Kh7
{[%clk 0:01:58.4]} 21. Bd3 {[%clk 0:01:18.6]} 21... c4 {[%clk 0:01:37.7]} 22.
Bxe4+ {[%clk 0:01:16.4]} 22... dxe4 {[%clk 0:01:38.6]} 23. Qh5+ {[%clk
0:01:11.3]} 23... Kg7 {[%clk 0:01:38.5]} 24. Qg4+ {[%clk 0:00:47.3]} 24... Kh7
{[%clk 0:01:37.8]} 25. Rd7 {[%clk 0:00:47.5]} 25... Rae8 {[%clk 0:01:36.2]} 26.
Rxe7+ {[%clk 0:00:41.7]} 26... Rxe7 {[%clk 0:01:34.3]} 27. Qxh4+ {[%clk
0:00:42.4]} 27... Kg8 {[%clk 0:01:32.9]} 28. Qxe7 {[%clk 0:00:43.3]} 28... Rh5
{[%clk 0:01:26.5]} 29. Bh6 {[%clk 0:00:38.9]} 29... Rxh6 {[%clk 0:01:22.9]} 30.
Rf8# {[%clk 0:00:38.3]} 1-0

[Event "Early-Titled-Tuesday-Blitz-October-03-2023"]
[Site "Chess.com"]
[Date "2023.10.03"]
[Round "6"]
[White "LubovMarkelova"]
[Black "ChainedDowntohell"]
[Result "0-1"]
[WhiteElo "2194"]
[BlackElo "2424"]
[TimeControl "180+1"]
[EndTime "9:05:02 PDT"]
[Termination "ChainedDowntohell won by resignation"]

1. e4 {[%clk 0:03:00.9]} 1... c5 {[%clk 0:02:59]} 2. Nc3 {[%clk 0:02:59.2]} 2...
a6 {[%clk 0:02:57.1]} 3. Nf3 {[%clk 0:02:58.1]} 3... Nc6 {[%clk 0:02:55.3]} 4.
d4 {[%clk 0:02:56.7]} 4... cxd4 {[%clk 0:02:55.4]} 5. Nxd4 {[%clk 0:02:57.6]}
5... e5 {[%clk 0:02:55.4]} 6. Nb3 {[%clk 0:02:51.9]} 6... Bb4 {[%clk 0:02:48.6]}
7. Bd2 {[%clk 0:02:49.6]} 7... Nf6 {[%clk 0:02:46.6]} 8. Bd3 {[%clk 0:02:48.1]}
8... d5 {[%clk 0:02:26.5]} 9. Nxd5 {[%clk 0:02:28.4]} 9... Nxd5 {[%clk
0:02:25.8]} 10. exd5 {[%clk 0:02:28.5]} 10... Qxd5 {[%clk 0:02:25.7]} 11. O-O
{[%clk 0:02:26.4]} 11... Be6 {[%clk 0:02:20.9]} 12. a3 {[%clk 0:02:23.4]} 12...
Be7 {[%clk 0:02:11.7]} 13. Qe2 {[%clk 0:02:17.5]} 13... O-O {[%clk 0:01:58.1]}
14. Bc3 {[%clk 0:02:17.4]} 14... f6 {[%clk 0:01:46.2]} 15. Rad1 {[%clk 0:02:17]}
15... Rfd8 {[%clk 0:01:39]} 16. Bxh7+ {[%clk 0:02:15.3]} 16... Kxh7 {[%clk
0:01:38.8]} 17. Rxd5 {[%clk 0:02:15.7]} 17... Bxd5 {[%clk 0:01:38.3]} 18. Qh5+
{[%clk 0:02:14.6]} 18... Kg8 {[%clk 0:01:37.4]} 19. Nd2 {[%clk 0:02:05.7]} 19...
Rd7 {[%clk 0:01:35.5]} 20. Qg4 {[%clk 0:01:57.1]} 20... Rad8 {[%clk 0:01:34.3]}
21. h4 {[%clk 0:01:54.6]} 21... Bf7 {[%clk 0:01:20.5]} 22. Ne4 {[%clk
0:01:40.2]} 22... Nd4 {[%clk 0:01:20.2]} 23. h5 {[%clk 0:01:36.7]} 23... Be6
{[%clk 0:01:19.8]} 24. Qg6 {[%clk 0:01:26.8]} 24... Bf5 {[%clk 0:01:20]} 0-1

[Event "Early-Titled-Tuesday-Blitz-October-03-2023"]
[Site "Chess.com"]
[Date "2023.10.03"]
[Round "6"]
[White "Vision_64"]
[Black "LUISMIGUELOV"]
[Result "1-0"]
[WhiteElo "2352"]
[BlackElo "2157"]
[TimeControl "180+1"]
[EndTime "9:05:04 PDT"]
[Termination "Vision_64 won by resignation"]

1. e4 {[%clk 0:02:56]} 1... c6 {[%clk 0:02:13]} 2. d4 {[%clk 0:02:54.1]} 2... d5
{[%clk 0:02:13.5]} 3. exd5 {[%clk 0:02:52.5]} 3... cxd5 {[%clk 0:02:13.5]} 4.
Bd3 {[%clk 0:02:52.8]} 4... Nc6 {[%clk 0:02:13.9]} 5. c3 {[%clk 0:02:51.1]} 5...
Qc7 {[%clk 0:02:14.4]} 6. Ne2 {[%clk 0:02:46.8]} 6... Bg4 {[%clk 0:02:14.2]} 7.
O-O {[%clk 0:02:46.6]} 7... Bxe2 {[%clk 0:02:14]} 8. Qxe2 {[%clk 0:02:46.4]}
8... e6 {[%clk 0:02:14.4]} 9. f4 {[%clk 0:02:41.1]} 9... g6 {[%clk 0:02:04.1]}
10. f5 {[%clk 0:02:35.1]} 10... gxf5 {[%clk 0:02:03.5]} 11. Bxf5 {[%clk
0:02:26.1]} 11... O-O-O {[%clk 0:02:01.9]} 12. Bh3 {[%clk 0:02:18]} 12... Bd6
{[%clk 0:02:00.3]} 13. Rxf7 {[%clk 0:02:15.6]} 13... Bxh2+ {[%clk 0:01:56.3]}
14. Kh1 {[%clk 0:02:15.3]} 14... Nge7 {[%clk 0:01:41.7]} 15. Qxe6+ {[%clk
0:02:11.4]} 15... Kb8 {[%clk 0:01:41.3]} 16. Bg5 {[%clk 0:02:05]} 16... Bd6
{[%clk 0:01:39.7]} 17. Na3 {[%clk 0:01:57.2]} 17... a6 {[%clk 0:01:38.1]} 18.
Re1 {[%clk 0:01:53.3]} 18... Rhe8 {[%clk 0:01:36.3]} 19. Nc2 {[%clk 0:01:45.2]}
19... Nc8 {[%clk 0:01:28.7]} 20. Rxc7 {[%clk 0:01:37.4]} 20... Rxe6 {[%clk
0:01:27]} 21. Rxc8+ {[%clk 0:01:37.4]} 21... Rxc8 {[%clk 0:01:22.1]} 22. Rxe6
{[%clk 0:01:37.5]} 22... Bg3 {[%clk 0:01:17.6]} 23. Re3 {[%clk 0:01:33.9]} 23...
Bf2 {[%clk 0:01:15.3]} 24. Bxc8 {[%clk 0:01:33.3]} 24... Bxe3 {[%clk 0:01:13.4]}
25. Nxe3 {[%clk 0:01:33.5]} 25... Kxc8 {[%clk 0:01:13.2]} 26. Nxd5 {[%clk
0:01:34.1]} 26... b5 {[%clk 0:01:10.2]} 27. Nf6 {[%clk 0:01:32.7]} 27... b4
{[%clk 0:01:07.4]} 28. Nxh7 {[%clk 0:01:31.9]} 28... bxc3 {[%clk 0:01:07.4]} 29.
bxc3 {[%clk 0:01:32.8]} 29... a5 {[%clk 0:01:06.4]} 30. Nf6 {[%clk 0:01:30.1]}
30... a4 {[%clk 0:01:05.8]} 31. Bd2 {[%clk 0:01:28.3]} 31... Kb7 {[%clk
0:01:04.6]} 32. g4 {[%clk 0:01:28.2]} 32... Kb6 {[%clk 0:01:04.5]} 33. g5 {[%clk
0:01:28.4]} 33... Ne7 {[%clk 0:01:04.2]} 34. c4 {[%clk 0:01:24.2]} 34... Kc6
{[%clk 0:01:01.4]} 35. Kg2 {[%clk 0:01:23.7]} 35... Ng6 {[%clk 0:01:00.7]} 36.
Kg3 {[%clk 0:01:22.3]} 36... Kd6 {[%clk 0:00:59.3]} 37. Kg4 {[%clk 0:01:21.7]}
37... Ke6 {[%clk 0:00:59.7]} 38. Ne4 {[%clk 0:01:19]} 1-0

[Event "Early-Titled-Tuesday-Blitz-October-03-2023"]
[Site "Chess.com"]
[Date "2023.10.03"]
[Round "6"]
[White "valemava"]
[Black "Predator0608"]
[Result "0-1"]
[WhiteElo "2278"]
[BlackElo "2469"]
[TimeControl "180+1"]
[EndTime "9:05:06 PDT"]
[Termination "Predator0608 won by checkmate"]

1. e4 {[%clk 0:00:50.2]} 1... c5 {[%clk 0:02:59.5]} 2. Nf3 {[%clk 0:00:49.6]}
2... d6 {[%clk 0:02:59.5]} 3. g3 {[%clk 0:00:49.8]} 3... Nf6 {[%clk 0:02:59.7]}
4. d3 {[%clk 0:00:49.8]} 4... g6 {[%clk 0:03:00.6]} 5. Bg2 {[%clk 0:00:50]} 5...
Bg7 {[%clk 0:03:01.1]} 6. O-O {[%clk 0:00:50.7]} 6... O-O {[%clk 0:03:01]} 7. c4
{[%clk 0:00:51.1]} 7... Nc6 {[%clk 0:03:00.9]} 8. Nc3 {[%clk 0:00:51.2]} 8... e5
{[%clk 0:03:01.2]} 9. h3 {[%clk 0:00:51.4]} 9... Nd4 {[%clk 0:03:01.4]} 10. Nxd4
{[%clk 0:00:51.1]} 10... cxd4 {[%clk 0:02:57.4]} 11. Ne2 {[%clk 0:00:52]} 11...
Nd7 {[%clk 0:02:58.3]} 12. f4 {[%clk 0:00:52.2]} 12... f5 {[%clk 0:02:53]} 13.
g4 {[%clk 0:00:51.8]} 13... fxg4 {[%clk 0:02:48.3]} 14. hxg4 {[%clk 0:00:51.5]}
14... exf4 {[%clk 0:02:49.2]} 15. Nxf4 {[%clk 0:00:50.7]} 15... Ne5 {[%clk
0:02:48.8]} 16. Bh3 {[%clk 0:00:50.1]} 16... Qh4 {[%clk 0:02:48.3]} 17. Qe1
{[%clk 0:00:46.6]} 17... Qxe1 {[%clk 0:02:45.3]} 18. Rxe1 {[%clk 0:00:47.5]}
18... Nf3+ {[%clk 0:02:46.1]} 19. Kf2 {[%clk 0:00:47.1]} 19... Nxe1 {[%clk
0:02:47]} 20. Kxe1 {[%clk 0:00:47.3]} 20... Be5 {[%clk 0:02:43.3]} 21. Nd5
{[%clk 0:00:46.7]} 21... Rf3 {[%clk 0:02:42.8]} 22. Bg2 {[%clk 0:00:45.7]} 22...
Bg3+ {[%clk 0:02:27.1]} 23. Kd1 {[%clk 0:00:43.6]} 23... Rf2 {[%clk 0:02:27.7]}
24. Bh3 {[%clk 0:00:42.7]} 24... Rh2 {[%clk 0:02:25.9]} 25. Bf1 {[%clk
0:00:41.6]} 25... Bxg4+ {[%clk 0:02:25.5]} 26. Be2 {[%clk 0:00:41.7]} 26...
Bxe2+ {[%clk 0:02:25.3]} 27. Kc2 {[%clk 0:00:40.3]} 27... Rf8 {[%clk 0:02:20.6]}
28. Kb3 {[%clk 0:00:40.3]} 28... Bd1+ {[%clk 0:02:20.1]} 29. Ka3 {[%clk
0:00:39.7]} 29... Be2 {[%clk 0:02:14.7]} 30. Bg5 {[%clk 0:00:39.6]} 30... Bxd3
{[%clk 0:02:13.3]} 31. b3 {[%clk 0:00:36.9]} 31... Be5 {[%clk 0:02:08.4]} 32.
Re1 {[%clk 0:00:33.3]} 32... h5 {[%clk 0:02:08.1]} 33. Be7 {[%clk 0:00:32.9]}
33... Rf7 {[%clk 0:02:07.5]} 34. c5 {[%clk 0:00:32.4]} 34... dxc5 {[%clk
0:02:05.5]} 35. Bxc5 {[%clk 0:00:32]} 35... h4 {[%clk 0:02:05.6]} 36. Rg1 {[%clk
0:00:19.3]} 36... Kg7 {[%clk 0:02:04.6]} 37. Bxa7 {[%clk 0:00:16.1]} 37... Bd6+
{[%clk 0:02:03.5]} 38. b4 {[%clk 0:00:15.8]} 38... Bc4 {[%clk 0:02:03.6]} 39.
Nb6 {[%clk 0:00:11.9]} 39... Rxa2# {[%clk 0:02:02.5]} 0-1

[Event "Early-Titled-Tuesday-Blitz-October-03-2023"]
[Site "Chess.com"]
[Date "2023.10.03"]
[Round "6"]
[White "arenal72"]
[Black "Zavgorodniy_Sergiy"]
[Result "0-1"]
[WhiteElo "2376"]
[BlackElo "2608"]
[TimeControl "180+1"]
[EndTime "9:05:13 PDT"]
[Termination "Zavgorodniy_Sergiy won by resignation"]

1. e4 {[%clk 0:03:00.9]} 1... e5 {[%clk 0:02:57.3]} 2. Nf3 {[%clk 0:02:57.8]}
2... d6 {[%clk 0:02:54.9]} 3. d4 {[%clk 0:02:57]} 3... exd4 {[%clk 0:02:55.8]}
4. Nxd4 {[%clk 0:02:57.1]} 4... Nf6 {[%clk 0:02:55.9]} 5. Nc3 {[%clk 0:02:57.1]}
5... Be7 {[%clk 0:02:56.4]} 6. g3 {[%clk 0:02:57.6]} 6... Bg4 {[%clk 0:02:55.2]}
7. f3 {[%clk 0:02:56.5]} 7... Bd7 {[%clk 0:02:55.7]} 8. Bg2 {[%clk 0:02:56.4]}
8... c5 {[%clk 0:02:56.1]} 9. Nde2 {[%clk 0:02:56.1]} 9... Bc6 {[%clk
0:02:56.6]} 10. Nf4 {[%clk 0:02:52.3]} 10... O-O {[%clk 0:02:55.7]} 11. O-O
{[%clk 0:02:50.7]} 11... b5 {[%clk 0:02:54.1]} 12. b3 {[%clk 0:02:41.4]} 12...
Nbd7 {[%clk 0:02:53.4]} 13. Bb2 {[%clk 0:02:39.5]} 13... Nb6 {[%clk 0:02:47.8]}
14. Re1 {[%clk 0:02:32.8]} 14... Re8 {[%clk 0:02:43.5]} 15. Qd2 {[%clk
0:02:21.2]} 15... a5 {[%clk 0:02:33.6]} 16. Rad1 {[%clk 0:02:18]} 16... a4
{[%clk 0:02:31.2]} 17. h4 {[%clk 0:02:07.9]} 17... b4 {[%clk 0:02:24.7]} 18.
Ncd5 {[%clk 0:02:06.7]} 18... Bxd5 {[%clk 0:02:23.9]} 19. exd5 {[%clk
0:02:00.1]} 19... axb3 {[%clk 0:02:23.8]} 20. axb3 {[%clk 0:02:00.7]} 20... Ra2
{[%clk 0:02:24.1]} 21. Rb1 {[%clk 0:01:56]} 21... Nfd7 {[%clk 0:02:19.1]} 22.
Nh5 {[%clk 0:01:53]} 22... g6 {[%clk 0:02:02.9]} 23. Ng7 {[%clk 0:00:44]} 23...
Rxb2 {[%clk 0:02:01.1]} 24. Rxb2 {[%clk 0:00:39.2]} 24... Kxg7 {[%clk
0:02:00.2]} 25. Ra2 {[%clk 0:00:38.4]} 25... Bf6 {[%clk 0:01:52.2]} 26. Rxe8
{[%clk 0:00:35.8]} 26... Qxe8 {[%clk 0:01:53.1]} 27. Bh3 {[%clk 0:00:35.6]}
27... Qe5 {[%clk 0:01:45.8]} 28. Ra7 {[%clk 0:00:30.8]} 28... Qxg3+ {[%clk
0:01:43.9]} 29. Bg2 {[%clk 0:00:30]} 29... Bd4+ {[%clk 0:01:41]} 30. Kf1 {[%clk
0:00:29.9]} 30... Nxd5 {[%clk 0:01:38.6]} 31. Rxd7 {[%clk 0:00:25]} 31... Ne3+
{[%clk 0:01:38.4]} 32. Ke2 {[%clk 0:00:24.9]} 32... Qxg2+ {[%clk 0:01:38.3]} 33.
Kd3 {[%clk 0:00:25.5]} 33... Qxf3 {[%clk 0:01:35.3]} 0-1

[Event "Early-Titled-Tuesday-Blitz-October-03-2023"]
[Site "Chess.com"]
[Date "2023.10.03"]
[Round "6"]
[White "wild3000"]
[Black "borocotoajua"]
[Result "1-0"]
[WhiteElo "2434"]
[BlackElo "2599"]
[TimeControl "180+1"]
[EndTime "9:05:28 PDT"]
[Termination "wild3000 won by resignation"]

1. d4 {[%clk 0:02:55.4]} 1... Nf6 {[%clk 0:02:59.5]} 2. Nf3 {[%clk 0:02:55.5]}
2... g6 {[%clk 0:02:59.5]} 3. e3 {[%clk 0:02:55.9]} 3... Bg7 {[%clk 0:02:59.6]}
4. Be2 {[%clk 0:02:56.6]} 4... O-O {[%clk 0:02:58.8]} 5. O-O {[%clk 0:02:57.2]}
5... d6 {[%clk 0:02:59.1]} 6. c4 {[%clk 0:02:57.4]} 6... c5 {[%clk 0:02:48.3]}
7. Nc3 {[%clk 0:02:58.3]} 7... Nc6 {[%clk 0:02:41.7]} 8. b3 {[%clk 0:02:55.8]}
8... d5 {[%clk 0:02:28.3]} 9. dxc5 {[%clk 0:02:52.3]} 9... Ne4 {[%clk
0:02:23.3]} 10. Nxe4 {[%clk 0:02:50.7]} 10... dxe4 {[%clk 0:02:20.6]} 11. Nd4
{[%clk 0:02:49.7]} 11... Nxd4 {[%clk 0:02:17]} 12. exd4 {[%clk 0:02:49.6]} 12...
Bxd4 {[%clk 0:02:06.5]} 13. Bh6 {[%clk 0:02:40.2]} 13... Re8 {[%clk 0:02:05.2]}
14. Rb1 {[%clk 0:02:27.3]} 14... Bxc5 {[%clk 0:02:02.4]} 15. b4 {[%clk
0:02:24.3]} 15... Bd4 {[%clk 0:01:53]} 16. c5 {[%clk 0:02:14]} 16... Bf5 {[%clk
0:01:48.9]} 17. Bb5 {[%clk 0:02:07.2]} 17... e3 {[%clk 0:01:25.5]} 18. fxe3
{[%clk 0:01:54.8]} 18... Bxb1 {[%clk 0:01:21.3]} 19. Bxe8 {[%clk 0:01:39.4]}
19... Bf6 {[%clk 0:00:58.9]} 20. Bxf7+ {[%clk 0:01:26.6]} 20... Kxf7 {[%clk
0:00:57.9]} 21. Qb3+ {[%clk 0:01:17.7]} 21... e6 {[%clk 0:00:51.5]} 22. Qxb1
{[%clk 0:01:12.1]} 22... Qd5 {[%clk 0:00:32.5]} 23. Qb2 {[%clk 0:01:04.4]} 23...
e5 {[%clk 0:00:27.7]} 24. Qf2 {[%clk 0:01:03.4]} 24... Qe6 {[%clk 0:00:25.4]}
25. Bg5 {[%clk 0:01:02.6]} 25... Kg8 {[%clk 0:00:26.3]} 26. Qxf6 {[%clk
0:01:01]} 1-0

[Event "Early-Titled-Tuesday-Blitz-October-03-2023"]
[Site "Chess.com"]
[Date "2023.10.03"]
[Round "6"]
[White "Martial2008"]
[Black "JiaHaoxiang"]
[Result "1-0"]
[WhiteElo "2609"]
[BlackElo "2610"]
[TimeControl "180+1"]
[EndTime "9:05:29 PDT"]
[Termination "Martial2008 won by resignation"]

1. d4 {[%clk 0:02:57.5]} 1... Nf6 {[%clk 0:02:29.7]} 2. Nf3 {[%clk 0:02:56.1]}
2... g6 {[%clk 0:02:29.8]} 3. Bg5 {[%clk 0:02:55.6]} 3... Bg7 {[%clk 0:02:29.4]}
4. Nbd2 {[%clk 0:02:56]} 4... d6 {[%clk 0:02:30]} 5. e4 {[%clk 0:02:54.9]} 5...
c5 {[%clk 0:02:28.7]} 6. dxc5 {[%clk 0:02:49]} 6... dxc5 {[%clk 0:02:28.8]} 7.
e5 {[%clk 0:02:48.4]} 7... Ng4 {[%clk 0:02:24.6]} 8. Bb5+ {[%clk 0:02:44.6]}
8... Nc6 {[%clk 0:02:11.8]} 9. Qe2 {[%clk 0:02:40.1]} 9... O-O {[%clk
0:01:51.6]} 10. Bxc6 {[%clk 0:02:38.9]} 10... bxc6 {[%clk 0:01:51.3]} 11. h3
{[%clk 0:02:39.5]} 11... Nh6 {[%clk 0:01:51.3]} 12. O-O-O {[%clk 0:02:39.3]}
12... Qa5 {[%clk 0:01:46]} 13. Kb1 {[%clk 0:02:37.2]} 13... Nf5 {[%clk
0:01:40.6]} 14. c3 {[%clk 0:02:34]} 14... Rb8 {[%clk 0:01:34.5]} 15. Nb3 {[%clk
0:02:29.9]} 15... Rxb3 {[%clk 0:01:30.6]} 16. axb3 {[%clk 0:02:28.8]} 16... Be6
{[%clk 0:01:29.8]} 17. Qc2 {[%clk 0:02:22.7]} 17... Rb8 {[%clk 0:01:23.2]} 18.
Nd2 {[%clk 0:02:11.1]} 18... Bxe5 {[%clk 0:01:18.1]} 19. g4 {[%clk 0:02:10.4]}
19... Nd6 {[%clk 0:01:11.2]} 20. Bxe7 {[%clk 0:02:08.7]} 20... Nb5 {[%clk
0:00:58.4]} 21. Kc1 {[%clk 0:02:00.4]} 21... Bf4 {[%clk 0:00:41.6]} 22. Bxc5
{[%clk 0:01:49.1]} 22... Nd4 {[%clk 0:00:23.9]} 23. Bxd4 {[%clk 0:01:39.5]}
23... Bxb3 {[%clk 0:00:24]} 24. Qb1 {[%clk 0:01:39.6]} 24... Ba2 {[%clk
0:00:21.4]} 25. Qa1 {[%clk 0:01:34.1]} 25... Qd5 {[%clk 0:00:17.2]} 26. Rhe1
{[%clk 0:01:30.4]} 26... Bb3 {[%clk 0:00:14.1]} 27. Qxa7 {[%clk 0:01:28.1]}
27... Rd8 {[%clk 0:00:13.3]} 28. Qe7 {[%clk 0:01:23.8]} 28... Bxd1 {[%clk
0:00:08.2]} 29. Qe8+ {[%clk 0:01:23.5]} 1-0

[Event "Early-Titled-Tuesday-Blitz-October-03-2023"]
[Site "Chess.com"]
[Date "2023.10.03"]
[Round "6"]
[White "Alenzer"]
[Black "microbear"]
[Result "0-1"]
[WhiteElo "2083"]
[BlackElo "2194"]
[TimeControl "180+1"]
[EndTime "9:05:31 PDT"]
[Termination "microbear won by resignation"]

1. e4 {[%clk 0:02:36.4]} 1... c5 {[%clk 0:02:51]} 2. Nf3 {[%clk 0:02:36.1]} 2...
d6 {[%clk 0:02:49.7]} 3. d4 {[%clk 0:02:35.9]} 3... Nf6 {[%clk 0:02:49.9]} 4.
dxc5 {[%clk 0:02:35.3]} 4... Nc6 {[%clk 0:02:48.9]} 5. cxd6 {[%clk 0:02:32.4]}
5... Nxe4 {[%clk 0:02:48.4]} 6. Bd3 {[%clk 0:02:28.5]} 6... Nxd6 {[%clk
0:02:48.3]} 7. O-O {[%clk 0:02:28.5]} 7... g6 {[%clk 0:02:49.2]} 8. Nc3 {[%clk
0:02:28]} 8... Bg7 {[%clk 0:02:49.7]} 9. Bd2 {[%clk 0:02:28.5]} 9... O-O {[%clk
0:02:47.6]} 10. Re1 {[%clk 0:02:28.7]} 10... e5 {[%clk 0:02:47.6]} 11. Ne4
{[%clk 0:02:21.2]} 11... Nxe4 {[%clk 0:02:47.1]} 12. Bxe4 {[%clk 0:02:21.5]}
12... Be6 {[%clk 0:02:45.2]} 13. Bg5 {[%clk 0:02:17.1]} 13... f6 {[%clk
0:02:42.8]} 14. Be3 {[%clk 0:02:16.6]} 14... Qxd1 {[%clk 0:02:39.6]} 15. Raxd1
{[%clk 0:02:16.3]} 15... f5 {[%clk 0:02:29.6]} 16. Bxc6 {[%clk 0:02:16.3]} 16...
bxc6 {[%clk 0:02:30.5]} 17. Bc5 {[%clk 0:02:08.7]} 17... Rfe8 {[%clk 0:02:25.8]}
18. Nxe5 {[%clk 0:02:05.4]} 18... Bxa2 {[%clk 0:02:19.7]} 19. Nxc6 {[%clk
0:01:57.4]} 19... Bxb2 {[%clk 0:02:14.9]} 20. Bd4 {[%clk 0:01:46.3]} 20... Bxd4
{[%clk 0:02:13.8]} 21. Nxd4 {[%clk 0:01:45.8]} 21... Rxe1+ {[%clk 0:02:11.1]}
22. Rxe1 {[%clk 0:01:45.8]} 22... Rd8 {[%clk 0:02:11.7]} 23. c3 {[%clk 0:01:42]}
23... Bc4 {[%clk 0:02:02.7]} 24. Re7 {[%clk 0:01:39.7]} 24... a6 {[%clk
0:01:59.5]} 25. h4 {[%clk 0:01:33.7]} 25... Ra8 {[%clk 0:01:53.5]} 26. Rc7
{[%clk 0:01:31.3]} 26... Bd5 {[%clk 0:01:48.3]} 27. Rc5 {[%clk 0:01:27.3]} 27...
Bf7 {[%clk 0:01:47.1]} 28. Ra5 {[%clk 0:01:27.3]} 28... Bc4 {[%clk 0:01:45.6]}
29. Kh2 {[%clk 0:01:22.9]} 29... Rc8 {[%clk 0:01:44.1]} 30. Kg3 {[%clk
0:01:21.3]} 30... Bd3 {[%clk 0:01:42.2]} 31. Ra3 {[%clk 0:01:21]} 31... Ra8
{[%clk 0:01:36.8]} 32. Kf4 {[%clk 0:01:20.6]} 32... a5 {[%clk 0:01:36.7]} 33.
Ke5 {[%clk 0:01:15.3]} 33... a4 {[%clk 0:01:36.7]} 34. Nc6 {[%clk 0:01:07.5]}
34... Bb5 {[%clk 0:01:31.3]} 35. Ne7+ {[%clk 0:01:01.3]} 35... Kf7 {[%clk
0:01:29.6]} 36. Nd5 {[%clk 0:01:01.8]} 36... Re8+ {[%clk 0:01:23.5]} 37. Kd4
{[%clk 0:01:01.9]} 37... Re2 {[%clk 0:01:22.7]} 38. c4 {[%clk 0:01:02]} 38...
Be8 {[%clk 0:01:19.1]} 39. Rxa4 {[%clk 0:01:00.7]} 39... Bxa4 {[%clk 0:01:18.5]}
40. Nc3 {[%clk 0:00:58.3]} 40... Rxf2 {[%clk 0:01:14.4]} 41. Nxa4 {[%clk
0:00:57.4]} 41... Rxg2 {[%clk 0:01:14.6]} 42. c5 {[%clk 0:00:58]} 42... Rg4+
{[%clk 0:01:14.5]} 43. Kd5 {[%clk 0:00:57.8]} 43... Rxa4 {[%clk 0:01:15.4]} 0-1

[Event "Early-Titled-Tuesday-Blitz-October-03-2023"]
[Site "Chess.com"]
[Date "2023.10.03"]
[Round "6"]
[White "ozates"]
[Black "slorovel"]
[Result "0-1"]
[WhiteElo "2617"]
[BlackElo "2493"]
[TimeControl "180+1"]
[EndTime "9:05:40 PDT"]
[Termination "slorovel won by resignation"]

1. c4 {[%clk 0:03:00.9]} 1... e5 {[%clk 0:02:59.8]} 2. g3 {[%clk 0:03:01]} 2...
Nf6 {[%clk 0:03:00.1]} 3. Bg2 {[%clk 0:03:01.7]} 3... Bc5 {[%clk 0:03:00.3]} 4.
Nc3 {[%clk 0:03:01.5]} 4... O-O {[%clk 0:03:00.7]} 5. e4 {[%clk 0:03:00.6]} 5...
d6 {[%clk 0:02:54.7]} 6. Nge2 {[%clk 0:03:00.4]} 6... a6 {[%clk 0:02:54.2]} 7.
O-O {[%clk 0:03:01]} 7... Nc6 {[%clk 0:02:54.4]} 8. h3 {[%clk 0:03:00.1]} 8...
Be6 {[%clk 0:02:54.9]} 9. d3 {[%clk 0:03:00.4]} 9... Nd4 {[%clk 0:02:54.9]} 10.
Kh2 {[%clk 0:03:00.3]} 10... b5 {[%clk 0:02:55.1]} 11. b3 {[%clk 0:03:00.2]}
11... b4 {[%clk 0:02:47.5]} 12. Nd5 {[%clk 0:02:55.9]} 12... c6 {[%clk
0:02:41.4]} 13. Nxf6+ {[%clk 0:02:53.3]} 13... Qxf6 {[%clk 0:02:40.6]} 14. Be3
{[%clk 0:02:53.1]} 14... Nxe2 {[%clk 0:02:29.3]} 15. Qxe2 {[%clk 0:02:51.6]}
15... a5 {[%clk 0:02:29.7]} 16. f4 {[%clk 0:02:50.7]} 16... Bxe3 {[%clk
0:02:26.4]} 17. Qxe3 {[%clk 0:02:50.5]} 17... a4 {[%clk 0:02:23.3]} 18. f5
{[%clk 0:02:47.3]} 18... Bd7 {[%clk 0:02:21.2]} 19. g4 {[%clk 0:02:47.7]} 19...
h6 {[%clk 0:02:20.5]} 20. Kg3 {[%clk 0:02:47.8]} 20... d5 {[%clk 0:02:16.5]} 21.
h4 {[%clk 0:02:45.5]} 21... dxe4 {[%clk 0:02:15.7]} 22. Bxe4 {[%clk 0:02:45.2]}
22... Qd6 {[%clk 0:02:07.9]} 23. g5 {[%clk 0:02:43.3]} 23... Qd4 {[%clk
0:02:03]} 24. Qxd4 {[%clk 0:02:11.5]} 24... exd4 {[%clk 0:02:03.1]} 25. gxh6
{[%clk 0:02:12.4]} 25... gxh6 {[%clk 0:02:02.4]} 26. Kg4 {[%clk 0:02:12.5]}
26... f6 {[%clk 0:02:00.7]} 27. Rg1 {[%clk 0:02:08.4]} 27... Kf7 {[%clk
0:01:59.9]} 28. Kf4 {[%clk 0:02:05.9]} 28... Rg8 {[%clk 0:01:56.8]} 29. Rg6
{[%clk 0:02:04.6]} 29... axb3 {[%clk 0:01:54.4]} 30. Rxh6 {[%clk 0:02:05]} 30...
bxa2 {[%clk 0:01:49]} 31. Bf3 {[%clk 0:01:59.4]} 31... b3 {[%clk 0:01:48.4]} 32.
Re1 {[%clk 0:01:45.4]} 32... Rge8 {[%clk 0:01:32.7]} 33. Bh5+ {[%clk 0:01:40.5]}
33... Kg7 {[%clk 0:01:31.6]} 34. Rg6+ {[%clk 0:01:00.1]} 34... Kh7 {[%clk
0:01:24.3]} 35. Reg1 {[%clk 0:00:50]} 35... Re7 {[%clk 0:01:24]} 36. Rxf6 {[%clk
0:00:44.9]} 36... a1=Q {[%clk 0:01:17]} 37. Rxa1 {[%clk 0:00:38.1]} 37... Rxa1
{[%clk 0:01:16.1]} 38. Kg5 {[%clk 0:00:34.5]} 38... Rg1+ {[%clk 0:01:09.6]} 39.
Bg4 {[%clk 0:00:34.8]} 39... Rg7+ {[%clk 0:01:07.8]} 40. Kh5 {[%clk 0:00:34.7]}
40... Be8+ {[%clk 0:01:06.1]} 0-1